fUST/lending_fUST_20250601
["ID","MTS","AMOUNT","RATE_DAILY","PERIOD"]
[363543662,1748759445442,-1123.38,0.00016438,2]
[363543664,1748759445451,-1123.38,0.00016438,2]
[363543666,1748759445461,-1123.38,0.00016438,2]
[363543668,1748759445470,-1123.38,0.00016438,2]
[363543670,1748759445480,-430.0,0.00016438,2]
[363543672,1748759445489,-1123.38,0.00016438,2]
[363543674,1748759445499,-1123.38,0.00016438,2]
[363543676,1748759445509,-430.0,0.00016438,2]
[363543678,1748759445520,-430.0,0.00016438,2]
[363543680,1748759445530,-430.0,0.00016438,2]
[363543682,1748759445539,-431.14044937,0.00016438,2]
[363543684,1748759445549,-430.0,0.00016438,2]
[363543686,1748759445559,-430.0,0.00016438,2]
[363543688,1748759445569,-430.0,0.00016438,2]
[363543690,1748759445579,-401.77674531,0.00016438,2]
[363543692,1748759445589,-422.37747354,0.00016438,2]
[363543694,1748759445598,-430.0,0.00016438,2]
[363543696,1748759445608,-430.0,0.00016438,2]
[363543698,1748759445618,-430.0,0.00016438,2]
[363543700,1748759445627,-430.0,0.00016438,2]
[363543702,1748759445637,-430.0,0.00016438,2]
[363543704,1748759445647,-403.41969708,0.00016438,2]
[363543706,1748759445657,-430.0,0.00016438,2]
[363543709,1748759445667,-430.0,0.00016438,2]
[363543711,1748759445677,-430.0,0.00016438,2]
[363543713,1748759445687,-430.0,0.00016438,2]
[363543715,1748759445696,-356.7847904,0.00016438,2]
[363543750,1748759446021,-73.2152096,0.00016438,2]
[363543752,1748759446031,-430.0,0.00016438,2]
[363543754,1748759446040,-430.0,0.00016438,2]
[363543756,1748759446050,-430.0,0.00016438,2]
[363543758,1748759446060,-430.0,0.00016438,2]
[363543760,1748759446070,-430.0,0.00016438,2]
[363543762,1748759446079,-496.51,0.00016438,2]
[363543764,1748759446088,-430.0,0.00016438,2]
[363543766,1748759446098,-430.0,0.00016438,2]
[363543768,1748759446108,-430.0,0.00016438,2]
[363543770,1748759446118,-430.0,0.00016438,2]
[363543772,1748759446128,-436.36064933,0.00016438,2]
[363543774,1748759446138,-430.0,0.00016438,2]
[363543776,1748759446148,-430.0,0.00016438,2]
[363543778,1748759446158,-430.0,0.00016438,2]
[363543780,1748759446167,-430.0,0.00016438,2]
[363543782,1748759446177,-430.45066149,0.00016438,2]
[363543785,1748759446187,-430.0,0.00016438,2]
[363543787,1748759446197,-430.0,0.00016438,2]
[363543789,1748759446206,-430.0,0.00016438,2]
[363543791,1748759446216,-494.70773844,0.00016438,2]
[363543793,1748759446226,-430.0,0.00016438,2]
[363543795,1748759446235,-430.0,0.00016438,2]
[363543797,1748759446245,-436.98982964,0.00016438,2]
[363543799,1748759446254,-430.0,0.00016438,2]
[363543801,1748759446264,-430.0,0.00016438,2]
[363543803,1748759446274,-430.0,0.00016438,2]
[363543805,1748759446284,-430.0,0.00016438,2]
[363543807,1748759446294,-469.0916087,0.00016438,2]
[363543809,1748759446303,-430.0,0.00016438,2]
[363543811,1748759446313,-772.68,0.00016438,2]
[363543813,1748759446323,-430.0,0.00016438,2]
[363543815,1748759446332,-430.0,0.00016438,2]
[363543817,1748759446342,-363.10454373,0.00016438,2]
[363543819,1748759446351,-430.0,0.00016438,2]
[363543821,1748759446361,-430.0,0.00016438,2]
[363543823,1748759446370,-418.92275974,0.00016438,2]
[363543825,1748759446379,-430.0,0.00016438,2]
[363543827,1748759446389,-430.0,0.00016438,2]
[363543829,1748759446398,-430.0,0.00016438,2]
[363543831,1748759446408,-430.0,0.00016438,2]
[363543833,1748759446418,-430.0,0.00016438,2]
[363543835,1748759446427,-430.0,0.00016438,2]
[363543837,1748759446437,-430.0,0.00016438,2]
[363543839,1748759446447,-430.0,0.00016438,2]
[363543841,1748759446456,-430.0,0.00016438,2]
[363543843,1748759446469,-430.0,0.00016438,2]
[363543845,1748759446479,-431.42066282,0.00016438,2]
[363543847,1748759446489,-430.0,0.00016438,2]
[363543849,1748759446500,-1032.8,0.00016438,2]
[363543851,1748759446512,-430.0,0.00016438,2]
[363543853,1748759446523,-430.0,0.00016438,2]
[363543855,1748759446532,-430.0,0.00016438,2]
[363543857,1748759446542,-451.14368514,0.00016438,2]
[363543859,1748759446552,-495.51,0.00016438,2]
[363543861,1748759446563,-430.0,0.00016438,2]
[363543863,1748759446573,-430.0,0.00016438,2]
[363543865,1748759446583,-430.0,0.00016438,2]
[363543867,1748759446595,-430.0,0.00016438,2]
[363543869,1748759446605,-430.0,0.00016438,2]
[363543871,1748759446614,-430.0,0.00016438,2]
[363543873,1748759446624,-430.0,0.00016438,2]
[363543875,1748759446633,-430.0,0.00016438,2]
[363543877,1748759446642,-430.0,0.00016438,2]
[363543879,1748759446652,-430.0,0.00016438,2]
[363543881,1748759446661,-430.0,0.00016438,2]
[363543883,1748759446670,-430.0,0.00016438,2]
[363543885,1748759446679,-430.0,0.00016438,2]
[363543887,1748759446689,-430.0,0.00016438,2]
[363543889,1748759446698,-430.53459338,0.00016438,2]
[363543891,1748759446706,-430.0,0.00016438,2]
[363543894,1748759446716,-430.0,0.00016438,2]
[363543895,1748759446726,-430.0,0.00016438,2]
[363543898,1748759446735,-430.0,0.00016438,2]
[363543900,1748759446745,-1438.52,0.00016438,2]
[363543902,1748759446754,-431.26081493,0.00016438,2]
[363543904,1748759446764,-430.0,0.00016438,2]
[363543906,1748759446773,-430.0,0.00016438,2]
[363543908,1748759446783,-504.43952877,0.00016438,2]
[363543910,1748759446792,-430.0,0.00016438,2]
[363543912,1748759446801,-1017.97,0.00016438,2]
[363543914,1748759446811,-430.0,0.00016438,2]
[363543916,1748759446820,-430.0,0.00016438,2]
[363543918,1748759446829,-430.0,0.00016438,2]
[363543919,1748759446838,-430.0,0.00016438,2]
[363543922,1748759446848,-1194.02,0.00016438,2]
[363543924,1748759446857,-430.0,0.00016438,2]
[363543926,1748759446866,-430.0,0.00016438,2]
[363543928,1748759446875,-447.63977635,0.00016438,2]
[363543930,1748759446885,-430.0,0.00016438,2]
[363543932,1748759446895,-430.0,0.00016438,2]
[363543934,1748759446905,-430.0,0.00016438,2]
[363543936,1748759446914,-430.0,0.00016438,2]
[363543938,1748759446924,-430.0,0.00016438,2]
[363543940,1748759446933,-516.49949987,0.00016438,2]
[363543942,1748759446943,-430.0,0.00016438,2]
[363543944,1748759446952,-430.0,0.00016438,2]
[363543946,1748759446962,-430.0,0.00016438,2]
[363543948,1748759446971,-430.0,0.00016438,2]
[363543950,1748759446980,-430.0,0.00016438,2]
[363543952,1748759446989,-434.64165332,0.00016438,2]
[363543954,1748759446999,-430.0,0.00016438,2]
[363543956,1748759447009,-430.0,0.00016438,2]
[363543958,1748759447018,-430.0,0.00016438,2]
[363543960,1748759447027,-430.0,0.00016438,2]
[363543962,1748759447036,-430.0,0.00016438,2]
[363543964,1748759447045,-178.393934,0.00016438,2]
[363543966,1748759447055,-430.0,0.00016438,2]
[363543968,1748759447064,-430.0,0.00016438,2]
[363543970,1748759447073,-430.0,0.00016438,2]
[363543972,1748759447082,-430.0,0.00016438,2]
[363543974,1748759447092,-430.0,0.00016438,2]
[363543976,1748759447102,-430.0,0.00016438,2]
[363543978,1748759447111,-178.393934,0.00016438,2]
[363543980,1748759447120,-641.94,0.00016438,2]
[363543982,1748759447130,-430.0,0.00016438,2]
[363543984,1748759447139,-519.02725028,0.00016438,2]
[363543986,1748759447149,-771.21,0.00016438,2]
[363543988,1748759447158,-430.0,0.00016438,2]
[363543990,1748759447168,-430.0,0.00016438,2]
[363543992,1748759447178,-430.0,0.00016438,2]
[363543994,1748759447188,-458.58,0.00016438,2]
[363543996,1748759447198,-500.0,0.00016473,2]
[363543998,1748759447207,-500.0,0.00016473,2]
[363544000,1748759447217,-500.0,0.00016473,2]
[363544002,1748759447227,-500.0,0.00016473,2]
[363544004,1748759447237,-502.15199976,0.00016473,2]
[363544006,1748759447247,-500.0,0.00016473,2]
[363544008,1748759447257,-193.4657468,0.00016526,2]
[363544010,1748759447266,-500.0,0.00016711,2]
[363544012,1748759447276,-500.0,0.00016711,2]
[363544014,1748759447286,-524.7,0.00016711,2]
[363544016,1748759447296,-524.7,0.00016711,2]
[363544018,1748759447305,-445.798385,0.00016711,2]
[363544020,1748759447315,-500.0,0.00016711,2]
[363544022,1748759447325,-1123.38,0.00016711,2]
[363544024,1748759447335,-1123.38,0.00016711,2]
[363544026,1748759447346,-1123.38,0.00016711,2]
[363544028,1748759447356,-1123.38,0.00016711,2]
[363544030,1748759447366,-1123.38,0.00016711,2]
[363544032,1748759447375,-1123.38,0.00016711,2]
[363544034,1748759447386,-1123.51479354,0.00016711,2]
[363544036,1748759447395,-430.0,0.00016712,2]
[363544038,1748759447407,-430.0,0.00016712,2]
[363544040,1748759447417,-430.0,0.00016712,2]
[363544043,1748759447427,-430.0,0.00016712,2]
[363544044,1748759447438,-430.0,0.00016712,2]
[363544047,1748759447448,-451.03,0.00016712,2]
[363544049,1748759447458,-450.52945816,0.00016712,2]
[363544051,1748759447467,-2545.0,0.00016712,2]
[363544053,1748759447476,-430.0,0.00016712,2]
[363544055,1748759447485,-430.0,0.00016712,2]
[363544057,1748759447495,-430.0,0.00016712,2]
[363544059,1748759447504,-430.0,0.00016712,2]
[363544061,1748759447516,-432.64994341,0.00016712,2]
[363544063,1748759447525,-430.0,0.00016712,2]
[363544065,1748759447535,-430.0,0.00016712,2]
[363544067,1748759447544,-490.75609032,0.00016712,2]
[363544069,1748759447554,-430.0,0.00016712,2]
[363544071,1748759447564,-430.0,0.00016712,2]
[363544073,1748759447573,-430.0,0.00016712,2]
[363544075,1748759447582,-430.0,0.00016712,2]
[363544077,1748759447592,-430.0,0.00016712,2]
[363544079,1748759447601,-462.45600868,0.00016712,2]
[363544081,1748759447611,-430.0,0.00016712,2]
[363544083,1748759447621,-430.0,0.00016712,2]
[363544085,1748759447631,-430.0,0.00016712,2]
[363544087,1748759447640,-430.0,0.00016712,2]
[363544089,1748759447649,-430.0,0.00016712,2]
[363544091,1748759447659,-211.17063852,0.00016712,2]
[363544093,1748759447668,-430.0,0.00016712,2]
[363544095,1748759447677,-430.0,0.00016712,2]
[363544097,1748759447687,-430.0,0.00016712,2]
[363544099,1748759447696,-430.0,0.00016712,2]
[363544101,1748759447705,-430.0,0.00016712,2]
[363544103,1748759447714,-430.0,0.00016712,2]
[363544105,1748759447724,-430.0,0.00016712,2]
[363544107,1748759447733,-187.36,0.00016712,2]
[363544109,1748759447742,-430.0,0.00016712,2]
[363544111,1748759447752,-430.0,0.00016712,2]
[363544113,1748759447761,-430.0,0.00016712,2]
[363544115,1748759447771,-430.0,0.00016712,2]
[363544117,1748759447780,-430.0,0.00016712,2]
[363544119,1748759447789,-337.67,0.00016712,2]
[363544121,1748759447798,-430.0,0.00016712,2]
[363544123,1748759447808,-430.0,0.00016712,2]
[363544125,1748759447817,-430.0,0.00016712,2]
[363544127,1748759447827,-430.0,0.00016712,2]
[363544129,1748759447836,-475.01678467,0.00016712,2]
[363544131,1748759447846,-430.0,0.00016712,2]
[363544133,1748759447855,-430.0,0.00016712,2]
[363544135,1748759447865,-430.0,0.00016712,2]
[363544137,1748759447874,-989.43,0.00016712,2]
[363544139,1748759447883,-218.66,0.00016712,2]
[363544141,1748759447893,-1060.86,0.00016712,2]
[363544143,1748759447903,-430.0,0.00016712,2]
[363544145,1748759447912,-430.0,0.00016712,2]
[363544147,1748759447922,-529.91,0.00016712,2]
[363544149,1748759447931,-462.81,0.00016712,2]
[363544151,1748759447941,-430.0,0.00016712,2]
[363544153,1748759447951,-430.0,0.00016712,2]
[363544155,1748759447960,-430.0,0.00016712,2]
[363544157,1748759447970,-430.0,0.00016712,2]
[363544159,1748759447979,-548.43,0.00016712,2]
[363544161,1748759447989,-430.0,0.00016712,2]
[363544163,1748759447998,-490.0,0.00016712,2]
[363544165,1748759448007,-485.9,0.00016712,2]
[363544167,1748759448017,-151.0,0.00016712,2]
[363544169,1748759448026,-430.0,0.00016712,2]
[363544171,1748759448035,-430.0,0.00016712,2]
[363544173,1748759448044,-430.0,0.00016712,2]
[363544175,1748759448053,-151.0,0.00016712,2]
[363544177,1748759448063,-430.0,0.00016712,2]
[363544179,1748759448072,-430.0,0.00016712,2]
[363544181,1748759448082,-430.0,0.00016712,2]
[363544183,1748759448091,-151.0,0.00016712,2]
[363544185,1748759448100,-430.0,0.00016712,2]
[363544187,1748759448110,-638.85,0.00016712,2]
[363544189,1748759448119,-430.0,0.00016712,2]
[363544191,1748759448128,-430.0,0.00016712,2]
[363544193,1748759448138,-430.0,0.00016712,2]
[363544195,1748759448147,-430.0,0.00016712,2]
[363544197,1748759448157,-430.0,0.00016712,2]
[363544210,1748759448271,-430.0,0.00016712,2]
[363544212,1748759448282,-454.51971857,0.00016712,2]
[363544214,1748759448292,-430.0,0.00016712,2]
[363544216,1748759448302,-430.0,0.00016712,2]
[363544218,1748759448312,-430.0,0.00016712,2]
[363544220,1748759448322,-430.0,0.00016712,2]
[363544222,1748759448332,-430.0,0.00016712,2]
[363544224,1748759448342,-430.0,0.00016712,2]
[363544226,1748759448351,-430.0,0.00016712,2]
[363544228,1748759448361,-430.0,0.00016712,2]
[363544230,1748759448370,-430.0,0.00016712,2]
[363544232,1748759448380,-430.0,0.00016712,2]
[363544234,1748759448390,-430.0,0.00016712,2]
[363544236,1748759448400,-496.51,0.00016712,2]
[363544238,1748759448411,-252.44,0.00016712,2]
[363544240,1748759448420,-430.0,0.00016712,2]
[363544242,1748759448431,-430.0,0.00016712,2]
[363544244,1748759448442,-430.0,0.00016712,2]
[363544246,1748759448451,-430.0,0.00016712,2]
[363544248,1748759448462,-430.0,0.00016712,2]
[363544250,1748759448471,-534.93,0.00016712,2]
[363544252,1748759448480,-423.23,0.00016712,2]
[363544254,1748759448490,-430.0,0.00016712,2]
[363544256,1748759448500,-430.0,0.00016712,2]
[363544258,1748759448509,-430.0,0.00016712,2]
[363544260,1748759448522,-772.68,0.00016712,2]
[363544262,1748759448531,-430.0,0.00016712,2]
[363544264,1748759448541,-430.0,0.00016712,2]
[363544266,1748759448551,-430.0,0.00016712,2]
[363544268,1748759448561,-1032.8,0.00016712,2]
[363544270,1748759448571,-430.0,0.00016712,2]
[363544272,1748759448580,-430.0,0.00016712,2]
[363544274,1748759448590,-495.51,0.00016712,2]
[363544276,1748759448599,-430.0,0.00016712,2]
[363544278,1748759448609,-430.0,0.00016712,2]
[363544280,1748759448618,-430.0,0.00016712,2]
[363544282,1748759448628,-430.0,0.00016712,2]
[363544284,1748759448638,-430.0,0.00016712,2]
[363544286,1748759448647,-430.0,0.00016712,2]
[363544288,1748759448657,-1438.52,0.00016712,2]
[363544290,1748759448667,-430.0,0.00016712,2]
[363544292,1748759448677,-1017.97,0.00016712,2]
[363544294,1748759448687,-430.0,0.00016712,2]
[363544296,1748759448696,-430.0,0.00016712,2]
[363544298,1748759448706,-1194.02,0.00016712,2]
[363544300,1748759448715,-430.0,0.00016712,2]
[363544302,1748759448725,-430.0,0.00016712,2]
[363544304,1748759448734,-430.0,0.00016712,2]
[363544306,1748759448744,-430.0,0.00016712,2]
[363544308,1748759448753,-430.0,0.00016712,2]
[363544310,1748759448763,-203.25,0.00016712,2]
[363544312,1748759448774,-430.0,0.00016712,2]
[363544314,1748759448784,-641.94,0.00016712,2]
[363544316,1748759448793,-771.21,0.00016712,2]
[363544317,1748759448803,-458.58,0.00016712,2]
[363544319,1748759448813,-1151.0,0.00016715,2]
[363544321,1748759448825,-500.0,0.00016778,2]
[363544323,1748759448835,-501.11559569,0.00016779,2]
[363544325,1748759448846,-500.0,0.00016779,2]
[363544327,1748759448861,-505.87940058,0.0001679,2]
[363544329,1748759448871,-500.0,0.00016868,2]
[363544331,1748759448881,-705.3171867,0.000169,2]
[363544333,1748759448891,-3760.6,0.00016965,2]
[363544335,1748759448902,-500.0,0.00016985,2]
[363544337,1748759448914,-524.7,0.00016985,2]
[363544339,1748759448923,-430.0,0.00016986,2]
[363544341,1748759448935,-249.18,0.00016986,2]
[363544343,1748759448944,-340.54967705,0.00016986,2]
[363544345,1748759448954,-2545.0,0.00016986,2]
[363544347,1748759448963,-430.0,0.00016986,2]
[363544349,1748759448973,-430.0,0.00016986,2]
[363544351,1748759448984,-430.0,0.00016986,2]
[363544353,1748759448994,-430.0,0.00016986,2]
[363544355,1748759449003,-430.0,0.00016986,2]
[363544357,1748759449013,-430.0,0.00016986,2]
[363544359,1748759449023,-430.0,0.00016986,2]
[363544361,1748759449032,-430.0,0.00016986,2]
[363544363,1748759449041,-192.73080363,0.00016986,2]
[363544365,1748759449051,-430.0,0.00016986,2]
[363544367,1748759449060,-253.12,0.00016986,2]
[363544369,1748759449070,-430.0,0.00016986,2]
[363544371,1748759449078,-325.55,0.00016986,2]
[363544373,1748759449087,-430.0,0.00016986,2]
[363544375,1748759449096,-430.0,0.00016986,2]
[363544377,1748759449105,-430.0,0.00016986,2]
[363544379,1748759449115,-403.39,0.00016986,2]
[363544381,1748759449124,-180.42,0.00016986,2]
[363544383,1748759449133,-151.0,0.00016986,2]
[363544384,1748759449142,-430.0,0.00016986,2]
[363544386,1748759449152,-260.65982847,0.00016986,2]
[363544388,1748759449161,-989.43,0.00016986,2]
[363544390,1748759449172,-1060.86,0.00016986,2]
[363544392,1748759449181,-430.0,0.00016986,2]
[363544394,1748759449191,-430.0,0.00016986,2]
[363544396,1748759449201,-462.81,0.00016986,2]
[363544398,1748759449211,-174.95,0.00016986,2]
[363544400,1748759449220,-430.0,0.00016986,2]
[363544402,1748759449230,-548.43,0.00016986,2]
[363544404,1748759449240,-430.0,0.00016986,2]
[363544406,1748759449250,-430.0,0.00016986,2]
[363544408,1748759449260,-448.57942235,0.00016986,2]
[363544410,1748759449270,-430.0,0.00016986,2]
[363544412,1748759449280,-212.78,0.00016986,2]
[363544414,1748759449289,-430.0,0.00016986,2]
[363544416,1748759449299,-638.85,0.00016986,2]
[363544418,1748759449309,-203.61420991,0.00016986,2]
[363544420,1748759449318,-430.0,0.00016986,2]
[363544422,1748759449327,-430.0,0.00016986,2]
[363544424,1748759449337,-430.0,0.00016986,2]
[363544425,1748759449348,-430.0,0.00016986,2]
[363544427,1748759449358,-430.0,0.00016986,2]
[363544430,1748759449369,-430.0,0.00016986,2]
[363544431,1748759449379,-430.0,0.00016986,2]
[363544434,1748759449390,-188.73,0.00016986,2]
[363544436,1748759449401,-430.0,0.00016986,2]
[363544438,1748759449411,-430.0,0.00016986,2]
[363544440,1748759449421,-430.0,0.00016986,2]
[363544441,1748759449431,-496.51,0.00016986,2]
[363544443,1748759449442,-347.42,0.00016986,2]
[363544445,1748759449452,-430.0,0.00016986,2]
[363544448,1748759449463,-576.31,0.00016986,2]
[363544449,1748759449473,-430.0,0.00016986,2]
[363544451,1748759449483,-430.0,0.00016986,2]
[363544453,1748759449492,-430.0,0.00016986,2]
[363544455,1748759449502,-430.0,0.00016986,2]
[363544457,1748759449515,-772.68,0.00016986,2]
[363544459,1748759449527,-430.0,0.00016986,2]
[363544461,1748759449537,-430.0,0.00016986,2]
[363544463,1748759449546,-430.0,0.00016986,2]
[363544465,1748759449556,-1032.8,0.00016986,2]
[363544467,1748759449567,-430.0,0.00016986,2]
[363544469,1748759449576,-495.51,0.00016986,2]
[363544471,1748759449586,-430.0,0.00016986,2]
[363544473,1748759449596,-193.25,0.00016986,2]
[363544475,1748759449607,-430.0,0.00016986,2]
[363544477,1748759449617,-1438.52,0.00016986,2]
[363544479,1748759449627,-430.0,0.00016986,2]
[363544481,1748759449637,-1017.97,0.00016986,2]
[363544483,1748759449646,-430.0,0.00016986,2]
[363544485,1748759449655,-452.73058149,0.00016986,2]
[363544487,1748759449665,-1194.02,0.00016986,2]
[363544489,1748759449674,-430.0,0.00016986,2]
[363544491,1748759449685,-430.0,0.00016986,2]
[363544493,1748759449695,-430.0,0.00016986,2]
[363544495,1748759449705,-467.0,0.00016986,2]
[363544497,1748759449715,-178.393934,0.00016986,2]
[363544499,1748759449725,-430.0,0.00016986,2]
[363544500,1748759449734,-178.393934,0.00016986,2]
[363544502,1748759449744,-641.94,0.00016986,2]
[363544504,1748759449754,-771.21,0.00016986,2]
[363544506,1748759449762,-458.58,0.00016986,2]
[363544508,1748759449772,-43455.16743166,0.0001699,2]
[363544510,1748759449781,-705.3171867,0.00017141,2]
[363544512,1748759449790,-500.0,0.00017259,2]
[363544514,1748759449800,-524.7,0.00017259,2]
[363544516,1748759449809,-500.0,0.00017259,2]
[363544518,1748759449818,-2545.0,0.0001726,2]
[363544520,1748759449827,-430.0,0.0001726,2]
[363544522,1748759449837,-430.0,0.0001726,2]
[363544524,1748759449846,-430.0,0.0001726,2]
[363544526,1748759449856,-184.52,0.0001726,2]
[363544528,1748759449866,-357.93064653,0.0001726,2]
[363544531,1748759449886,-72.06935347,0.0001726,2]
[363544533,1748759449895,-447.29,0.0001726,2]
[363544535,1748759449905,-430.0,0.0001726,2]
[363544537,1748759449914,-430.0,0.0001726,2]
[363544539,1748759449923,-430.0,0.0001726,2]
[363544540,1748759449933,-151.0,0.0001726,2]
[363544542,1748759449944,-989.43,0.0001726,2]
[363544544,1748759449955,-1060.86,0.0001726,2]
[363544546,1748759449965,-176.29,0.0001726,2]
[363544548,1748759449974,-430.0,0.0001726,2]
[363544550,1748759449984,-462.81,0.0001726,2]
[363544552,1748759449994,-430.0,0.0001726,2]
[363544554,1748759450003,-548.43,0.0001726,2]
[363544556,1748759450013,-430.0,0.0001726,2]
[363544558,1748759450023,-151.0,0.0001726,2]
[363544560,1748759450032,-430.0,0.0001726,2]
[363544562,1748759450042,-430.0,0.0001726,2]
[363544564,1748759450052,-151.0,0.0001726,2]
[363544566,1748759450062,-430.0,0.0001726,2]
[363544567,1748759450071,-151.0,0.0001726,2]
[363544568,1748759450080,-638.85,0.0001726,2]
[363544569,1748759450090,-430.0,0.0001726,2]
[363544570,1748759450100,-430.0,0.0001726,2]
[363544571,1748759450110,-430.0,0.0001726,2]
[363544572,1748759450120,-156.87,0.0001726,2]
[363544573,1748759450130,-430.0,0.0001726,2]
[363544574,1748759450140,-488.93,0.0001726,2]
[363544575,1748759450150,-430.0,0.0001726,2]
[363544576,1748759450160,-430.0,0.0001726,2]
[363544577,1748759450170,-430.0,0.0001726,2]
[363544578,1748759450181,-430.0,0.0001726,2]
[363544579,1748759450191,-496.51,0.0001726,2]
[363544580,1748759450201,-430.0,0.0001726,2]
[363544581,1748759450211,-256.26,0.0001726,2]
[363544582,1748759450222,-430.0,0.0001726,2]
[363544583,1748759450232,-430.0,0.0001726,2]
[363544584,1748759450241,-430.0,0.0001726,2]
[363544585,1748759450251,-772.68,0.0001726,2]
[363544586,1748759450262,-342.68,0.0001726,2]
[363544587,1748759450273,-516.46232613,0.0001726,2]
[363544588,1748759450282,-430.0,0.0001726,2]
[363544589,1748759450292,-1032.8,0.0001726,2]
[363544590,1748759450303,-430.0,0.0001726,2]
[363544591,1748759450313,-495.51,0.0001726,2]
[363544592,1748759450323,-430.0,0.0001726,2]
[363544593,1748759450333,-430.0,0.0001726,2]
[363544594,1748759450343,-1438.52,0.0001726,2]
[363544595,1748759450354,-430.0,0.0001726,2]
[363544596,1748759450364,-1017.97,0.0001726,2]
[363544597,1748759450374,-430.0,0.0001726,2]
[363544598,1748759450384,-1194.02,0.0001726,2]
[363544599,1748759450394,-430.0,0.0001726,2]
[363544600,1748759450404,-430.0,0.0001726,2]
[363544601,1748759450414,-430.0,0.0001726,2]
[363544602,1748759450424,-430.0,0.0001726,2]
[363544603,1748759450434,-641.94,0.0001726,2]
[363544604,1748759450445,-771.21,0.0001726,2]
[363544605,1748759450455,-2339.80388968,0.00017365,2]
[363544606,1748759450464,-705.3171867,0.00017383,2]
[363544607,1748759450474,-507.80765457,0.00017416,2]
[363544608,1748759450483,-151.0,0.00017416,2]
[363544609,1748759450494,-151.0,0.00017416,2]
[363544610,1748759450503,-216.872591,0.00017416,2]
[363544611,1748759450513,-216.872591,0.00017416,2]
[363544612,1748759450526,-151.0,0.00017416,2]
[363544615,1748759450635,-151.0,0.00017416,2]
[363544617,1748759450644,-500.0,0.00017532,2]
[363544619,1748759450654,-500.0,0.00017533,2]
[363544621,1748759450664,-524.7,0.00017533,2]
[363544623,1748759450674,-500.0,0.00017533,2]
[363544624,1748759450684,-2545.0,0.00017534,2]
[363544625,1748759450695,-430.0,0.00017534,2]
[363544626,1748759450704,-430.0,0.00017534,2]
[363544628,1748759450714,-156.003062,0.00017534,2]
[363544630,1748759450724,-289.95,0.00017534,2]
[363544632,1748759450733,-431.622533,0.00017534,2]
[363544633,1748759450743,-431.622533,0.00017534,2]
[363544634,1748759450752,-533.68,0.00017534,2]
[363544635,1748759450762,-430.0,0.00017534,2]
[363544636,1748759450772,-430.0,0.00017534,2]
[363544637,1748759450782,-989.43,0.00017534,2]
[363544638,1748759450792,-1060.86,0.00017534,2]
[363544639,1748759450802,-430.0,0.00017534,2]
[363544640,1748759450812,-462.81,0.00017534,2]
[363544641,1748759450821,-430.0,0.00017534,2]
[363544642,1748759450831,-548.43,0.00017534,2]
[363544643,1748759450840,-430.0,0.00017534,2]
[363544644,1748759450851,-430.0,0.00017534,2]